bitfinex-derivatives/quotes_SOLF0:USTF0_20250714
["timestamp","ask_amount","ask_price","bid_price","bid_amount"]
[1752536944210,6.19914615,162.35,162.33,6.1593]
[1752536945311,0.04054615,162.35,162.33,6.1593]
[1752536946113,0.04054615,162.35,162.34,6.1589]
[1752536946414,5.16939114,162.41,162.32,176.68]
[1752536946614,6.1581,162.37,162.34,6.1587]
[1752536947713,6.1581,162.37,162.34,6.20094223]
[1752536948312,6.1582,162.36,162.34,6.20094223]
[1752536948517,6.1582,162.36,162.34,0.04224223]
[1752536950113,6.1582,162.36,162.34,6.20114223]
[1752536950614,6.1582,162.36,162.34,0.04224223]
[1752536951611,6.1586,162.35,162.34,0.04224223]
[1752536952614,6.1584,162.36,162.34,0.04224223]
[1752536955214,6.1586,162.35,162.34,0.04224223]
[1752536962818,6.1584,162.36,162.34,0.04224223]
[1752536963116,5.16939114,162.39,162.34,0.04224223]
[1752536963319,6.1584,162.36,162.34,6.20114223]
[1752536964319,6.1584,162.36,162.34,0.04224223]
[1752536965620,6.1586,162.35,162.34,0.04224223]
[1752536970324,6.1583,162.36,162.34,0.04224223]
[1752536970625,5.1908802,162.39,162.34,0.04224223]
[1752536971119,6.1578,162.37,162.34,6.1588]
[1752536971323,5.1908802,162.39,162.32,176.7]
[1752536971627,11.3481802,162.39,162.35,6.1584]
[1752536972122,5.1908802,162.39,162.34,0.04304683]
[1752536972325,11.3479802,162.39,162.35,6.1582]
[1752536972722,11.3479802,162.39,162.34,0.04304683]
[1752536973427,6.1571,162.39,162.34,0.04304683]
[1752536973622,5.1908802,162.41,162.34,0.04304683]
[1752536974930,5.1908802,162.42,162.34,0.04304683]
[1752536975325,6.1565,162.41,162.37,6.1575]
[1752536976034,6.1565,162.41,162.37,6.19901813]
[1752536976231,6.1565,162.41,162.38,6.1574]
[1752536977436,11.3469802,162.42,162.37,0.04151813]
[1752536977624,6.1561,162.42,162.37,176.72151813]
[1752536977932,6.1561,162.42,162.39,6.1568]
[1752536979329,78.80520182,162.44,162.37,176.72151813]
[1752536979330,6.1557,162.43,162.4,6.1567]
[1752536981431,84.96040182,162.44,162.4,6.1567]
[1752536982037,84.96040182,162.44,162.39,6.1569]
[1752536983437,6.1556,162.43,162.39,6.1569]
[1752536985140,6.155,162.45,162.37,176.72151813]
[1752536986039,6.155,162.45,162.4,6.1564]
[1752536986441,6.155,162.45,162.41,6.1563]
[1752536986741,6.155,162.45,162.41,6.19714062]
[1752536987840,6.1546,162.46,162.41,6.19714062]
[1752536988635,6.1546,162.46,162.41,0.04084062]
[1752536988940,6.1542,162.47,162.41,0.04084062]
[1752536990241,6.1542,162.47,162.43,6.1553]
[1752536992345,6.1538,162.48,162.43,6.1553]
[1752536993045,6.1538,162.48,162.44,0.04184009]
[1752536995140,6.154,162.47,162.44,0.04184009]
[1752536996046,6.1537,162.48,162.44,0.04184009]
[1752536997344,6.1537,162.48,162.44,6.19704009]
[1752536997546,6.1537,162.48,162.44,0.04184009]
[1752536997846,6.23096134,162.52,162.44,0.04184009]
[1752536998042,5.15938431,162.51,162.44,0.04184009]
[1752536998649,6.154,162.47,162.44,0.04184009]
[1752537000341,6.154,162.48,162.44,0.04184009]
[1752537000652,6.23096134,162.52,162.44,0.04184009]
[1752537000842,5.15938431,162.51,162.44,0.04184009]
[1752537001045,6.1542,162.47,162.44,0.04184009]
[1752537001450,5.15938431,162.51,162.44,0.04184009]
[1752537001646,6.1544,162.47,162.44,0.04184009]
[1752537001847,5.15938431,162.51,162.44,0.04184009]
[1752537003157,5.15938431,162.5,162.44,0.04184009]
[1752537003656,6.1548,162.45,162.44,0.04184009]
[1752537006251,6.1568,162.4,162.32,6.90094665]
[1752537006447,75.99207229,162.45,162.31,176.6]
[1752537006852,6.1561,162.42,162.37,6.1576]
[1752537007256,75.99207229,162.45,162.37,6.1576]
[1752537007452,6.1563,162.42,162.37,6.1576]
[1752537007654,0.04054462,162.41,162.37,6.1576]
[1752537008458,6.19684462,162.41,162.37,6.1576]
[1752537010059,0.04054462,162.41,162.37,6.1576]
[1752537013655,0.04054462,162.41,162.38,6.1574]
[1752537014058,6.1561,162.42,162.38,6.1574]
[1752537014258,75.99207229,162.45,162.4,6.1567]
[1752537014455,0.04037193,162.41,162.4,6.1567]
[1752537015467,0.04037193,162.41,162.39,6.1569]
[1752537016861,0.04037193,162.41,162.31,6.90094665]
[1752537017060,0.04037193,162.41,162.31,176.76]
[1752537017259,5.15938431,162.43,162.31,176.76]
[1752537017457,6.1567,162.4,162.35,6.1583]
[1752537017667,0.04604132,162.38,162.28,646.75437549]
[1752537017859,6.1584,162.36,162.32,6.1594]
[1752537018060,0.04604132,162.38,162.28,646.75437549]
[1752537018462,6.1578,162.37,162.33,6.1591]
[1752537018766,0.04505303,162.35,162.33,6.1591]
[1752537021265,0.04505303,162.35,162.34,6.159]
[1752537021666,0.04505303,162.35,162.28,531.78]
[1752537022267,6.1595,162.33,162.28,531.78]
[1752537023468,6.1595,162.33,162.29,6.1606]
[1752537024769,6.159,162.34,162.28,531.78]
[1752537025169,6.159,162.34,162.3,6.1602]
[1752537026167,0.04505303,162.35,162.28,708.94]
[1752537027972,6.1591,162.34,162.31,6.16]
[1752537028664,6.20365303,162.35,162.32,6.1597]
[1752537029066,0.04505303,162.35,162.32,6.1597]
[1752537029367,0.04505303,162.35,162.33,6.159]
[1752537031369,0.04505303,162.35,162.32,183.3396]
[1752537032870,0.04505303,162.35,162.31,6.16]
[1752537033079,0.04505303,162.35,162.3,177.16]
[1752537033773,6.20385303,162.35,162.31,6.1599]
[1752537034373,6.20385303,162.35,162.32,6.1596]
[1752537036176,0.04505303,162.35,162.28,531.78]
[1752537036372,0.04505303,162.35,162.29,177.14]
[1752537036977,6.1592,162.34,162.31,6.1601]
[1752537037177,6.1592,162.34,162.29,177.14]
[1752537037574,6.1592,162.34,162.3,6.1602]
[1752537039479,0.04505303,162.35,162.29,177.14]
[1752537040076,0.04505303,162.35,162.32,6.1595]
[1752537040378,0.04505303,162.35,162.29,177.2]
[1752537040574,0.04505303,162.35,162.29,183.3606]
[1752537042079,6.1596,162.33,162.29,183.3606]
[1752537042280,0.04505303,162.35,162.29,183.3606]
[1752537042579,6.1604,162.31,162.27,6.1613]
[1752537042772,0.04505303,162.35,162.27,6.1613]
[1752537042976,5.15917208,162.39,162.27,6.1613]
[1752537043376,0.04435746,162.33,162.27,6.1613]
[1752537043680,0.04435746,162.33,162.26,183.4618]
[1752537044379,6.1607,162.3,162.27,6.1615]
[1752537044779,0.04435746,162.33,162.26,177.3]
[1752537044974,6.1604,162.31,162.28,6.161]
[1752537045780,6.1605,162.3,162.27,6.1614]
[1752537048186,6.1609,162.29,162.27,6.1614]
[1752537048481,0.04435746,162.33,162.26,183.462]
[1752537048683,6.1614,162.28,162.26,177.3]
[1752537049377,6.1616,162.27,162.26,177.3]
[1752537049581,0.03975502,162.29,162.2,532.1]
[1752537049782,6.1625,162.25,162.21,177.26]
[1752537050384,6.1625,162.25,162.22,6.1632]
[1752537050884,6.1629,162.24,162.21,177.26]
[1752537051183,0.04556496,162.26,162.21,183.4238]
[1752537051378,6.163,162.24,162.21,177.26]
[1752537051783,0.04556496,162.26,162.22,6.1635]
[1752537052684,6.1624,162.25,162.22,6.1635]
[1752537054589,6.1628,162.24,162.22,6.1635]
[1752537055990,6.1625,162.25,162.22,6.1635]
[1752537056592,6.1627,162.24,162.22,6.1635]
[1752537056793,0.04556496,162.26,162.22,6.1635]
[1752537057794,6.1624,162.25,162.22,6.1635]
[1752537058189,6.20776496,162.26,162.23,6.1629]
[1752537058492,0.04556496,162.26,162.21,177.26]
[1752537058687,0.04556496,162.26,162.22,6.1633]
[1752537058887,0.04556496,162.26,162.21,177.26]
[1752537059892,0.04556496,162.26,162.24,6.1627]
[1752537060692,6.20776496,162.26,162.23,6.1631]
[1752537060894,6.20776496,162.26,162.24,177.26]
[1752537062294,6.1624,162.25,162.24,177.26]
[1752537062494,0.04556496,162.26,162.24,177.26]
[1752537063592,6.1624,162.25,162.24,177.26]
[1752537063997,0.04556496,162.26,162.24,177.26]
[1752537064196,6.20776496,162.26,162.24,177.26]
[1752537064498,0.04556496,162.26,162.24,177.26]
[1752537064894,0.04556496,162.26,162.25,6.1624]
[1752537066398,0.04556496,162.26,162.24,183.4226]
[1752537076498,0.04556496,162.26,162.25,6.1624]
[1752537077903,0.04556496,162.26,162.24,183.4226]
[1752537081204,0.04556496,162.26,162.24,177.26]
[1752537081410,0.04556496,162.26,162.23,177.06]
[1752537081909,6.1626,162.25,162.23,177.06]
[1752537084612,6.1627,162.24,162.23,177.06]
[1752537086315,0.04556496,162.26,162.18,127.87688866]
[1752537086515,0.04556496,162.26,162.19,177.0]
[1752537086716,5.16393711,162.3,162.2,6.164]
[1752537087014,0.04091311,162.24,162.2,6.164]
[1752537087216,6.1635,162.23,162.2,6.164]
[1752537087416,0.04091311,162.24,162.2,6.164]
[1752537087912,0.04091311,162.24,162.19,183.1645]
[1752537088417,6.1638,162.22,162.19,183.1645]
[1752537088717,0.04091311,162.24,162.19,183.1645]
[1752537088913,0.04091311,162.24,162.19,177.0]
[1752537089912,6.1643,162.2,162.19,177.0]
[1752537094319,5.20485022,162.24,162.15,532.34]
[1752537094518,5.16393711,162.23,162.16,176.94]
[1752537094717,6.1658,162.16,162.15,176.94]
[1752537095016,0.03910609,162.21,162.15,176.94]
[1752537095417,6.1657,162.17,162.15,176.94]
[1752537097323,6.1658,162.16,162.15,176.94]
[1752537099224,6.1665,162.15,162.11,183.1675]
[1752537099722,6.1665,162.15,162.12,6.1673]
[1752537100026,0.04325231,162.15,162.11,177.0]
[1752537100527,0.04325231,162.15,162.12,6.1672]
[1752537103829,0.04325231,162.15,162.13,6.1669]
[1752537105525,0.04325231,162.15,162.14,6.1665]
[1752537108628,0.04325231,162.15,162.14,183.2265]
[1752537112127,0.04325231,162.15,162.13,3.34665456]
[1752537112333,0.04325231,162.15,162.14,177.14]
[1752537113432,0.04325231,162.15,162.09,3.34665456]
[1752537113732,0.04325231,162.15,162.1,177.16]
[1752537114930,6.1668,162.14,162.11,6.1675]
[1752537115134,6.1668,162.14,162.1,177.16]
[1752537115327,0.04325231,162.15,162.1,177.16]
[1752537115536,6.1669,162.13,162.1,183.3279]
[1752537116035,0.04325231,162.15,162.1,177.16]
[1752537116234,6.20945231,162.15,162.11,6.1675]
[1752537117141,6.1666,162.14,162.1,183.3279]
[1752537118936,0.04325231,162.15,162.1,177.16]
[1752537119937,0.04325231,162.15,162.11,3.34665456]
[1752537120639,0.04325231,162.15,162.12,6.1671]
[1752537121339,0.04325231,162.15,162.11,3.34665456]
[1752537121835,0.04325231,162.15,162.12,6.1671]
[1752537123840,0.04325231,162.15,162.14,6.1665]
[1752537124043,0.04325231,162.15,162.14,183.3265]
[1752537127947,0.04325231,162.15,162.14,177.16]
[1752537129647,6.20945231,162.15,162.12,9.51375456]
[1752537129852,0.04325231,162.15,162.11,183.2876]
[1752537130645,6.1666,162.14,162.11,183.2876]
[1752537131551,6.20955231,162.15,162.12,6.1671]
[1752537136753,0.04325231,162.15,162.12,6.1671]
[1752537137350,0.04325231,162.15,162.07,539.34094665]
[1752537137652,0.04325231,162.15,162.09,3.34665456]
[1752537138554,6.1668,162.14,162.1,6.1679]
[1752537139654,6.1668,162.14,162.11,6.1677]
[1752537140455,6.20965231,162.15,162.11,6.1677]
[1752537140853,0.04325231,162.15,162.11,3.34665456]
[1752537141054,0.04325231,162.15,162.12,177.08]
[1752537141555,0.04325231,162.15,162.13,6.1667]
[1752537143158,6.20945231,162.15,162.12,183.2471]
[1752537143354,0.04325231,162.15,162.12,183.2471]
[1752537144358,0.04325231,162.15,162.13,6.1668]
[1752537150664,6.20945231,162.15,162.12,183.3872]
[1752537160470,6.20945231,162.15,162.12,177.22]
[1752537161064,0.04325231,162.15,162.13,8.30880488]
[1752537161364,0.04325231,162.15,162.13,2.14190488]
[1752537162167,6.20945231,162.15,162.13,2.14190488]
[1752537162869,0.04325231,162.15,162.13,8.30880488]
[1752537165667,6.20945231,162.15,162.13,8.30880488]
[1752537169970,0.04325231,162.15,162.14,8.30840488]
[1752537170673,0.04325231,162.15,162.14,2.14190488]
[1752537172467,0.04325231,162.15,162.13,8.30870488]
[1752537174873,0.04325231,162.15,162.14,6.1665]
[1752537175478,0.04325231,162.15,162.13,8.30870488]
[1752537177173,0.04325231,162.15,162.14,6.1665]
[1752537183477,0.04325231,162.15,162.14,8.30808321]
[1752537183783,0.04325231,162.15,162.14,8.30744316]
[1752537185375,0.04325231,162.15,162.13,6.1668]
[1752537185581,2.18419547,162.15,162.11,177.02]
[1752537185881,2.18419547,162.15,162.12,8.30804316]
[1752537186080,2.18419547,162.15,162.12,6.1671]
[1752537186682,0.04325231,162.15,162.12,6.1671]
[1752537187380,0.04325231,162.15,162.12,8.30804316]
[1752537187582,0.04325231,162.15,162.13,6.1668]
[1752537189078,2.18419547,162.15,162.13,6.1668]
[1752537190884,2.18419547,162.15,162.14,6.1665]
[1752537191084,0.04325231,162.15,162.14,6.1665]
[1752537191286,0.04325231,162.15,162.14,8.30744316]
[1752537206196,0.04325231,162.15,162.14,6.1665]
[1752537206499,0.04325231,162.15,162.14,8.30744316]
[1752537211708,0.04325231,162.15,162.14,2.14094316]
[1752537211905,0.04325231,162.15,162.09,6.90094665]
[1752537212104,0.04325231,162.15,162.12,2.14094316]
[1752537212608,0.04325231,162.15,162.1,177.0]
[1752537212609,0.04325231,162.15,162.13,2.14094316]
[1752537213210,0.04325231,162.15,162.13,8.30754316]
[1752537214311,6.20945231,162.15,162.13,2.14094316]
[1752537217017,0.04325231,162.15,162.13,2.14094316]
[1752537217816,0.04325231,162.15,162.13,8.30784316]
[1752537219420,0.04325231,162.15,162.13,2.14094316]
[1752537220318,0.04325231,162.15,162.13,8.30784316]
[1752537222715,0.04325231,162.15,162.14,2.14094316]
[1752537223620,0.04325231,162.15,162.14,8.30744316]
[1752537229627,6.1643,162.2,162.16,6.1654]
[1752537229828,6.1643,162.2,162.19,2.14094316]
[1752537230125,6.1643,162.2,162.18,2.14094316]
[1752537232326,6.164,162.21,162.18,2.14094316]
[1752537232721,6.164,162.21,162.19,2.14094316]
[1752537232928,5.19429642,162.24,162.2,2.14094316]
[1752537233127,5.19429642,162.28,162.23,2.14094316]
[1752537233421,7.33523958,162.32,162.27,2.14094316]
[1752537233632,2.14094316,162.32,162.28,2.14094316]
[1752537234622,6.1606,162.3,162.28,2.14094316]
[1752537235126,6.1606,162.3,162.27,9.50177513]
[1752537235425,8.53467155,162.34,162.26,3.34037513]
[1752537235426,6.1611,162.29,162.26,3.34037513]
[1752537236528,6.1606,162.3,162.26,9.50237513]
[1752537238932,6.1601,162.31,162.27,6.1615]
[1752537239631,6.1597,162.32,162.28,9.50147513]
[1752537239935,3.34037513,162.36,162.28,9.50147513]
[1752537240137,6.1595,162.33,162.29,6.1608]
[1752537240323,6.1595,162.33,162.3,3.34037513]
[1752537241134,6.159,162.34,162.3,3.34037513]
[1752537243934,6.1594,162.33,162.3,3.34037513]
[1752537245128,6.1591,162.34,162.3,3.34037513]
[1752537245635,6.1586,162.35,162.31,6.1601]
[1752537245838,3.34037513,162.38,162.31,6.1601]
[1752537246333,3.34037513,162.38,162.32,9.49997513]
[1752537246526,67.83177488,162.39,162.32,3.34037513]
[1752537246934,6.1577,162.38,162.32,3.34037513]
[1752537247634,6.1577,162.38,162.33,6.1592]
[1752537248033,6.1579,162.37,162.32,3.34037513]
[1752537248235,6.1579,162.37,162.32,9.49977513]
[1752537248633,6.1579,162.37,162.32,3.34037513]
[1752537249937,6.1576,162.38,162.33,6.1593]
[1752537250132,67.83177488,162.39,162.33,6.1593]
[1752537251135,6.1579,162.37,162.33,6.1593]
[1752537252034,6.1575,162.38,162.34,6.1589]
[1752537252835,6.1575,162.38,162.34,9.49927513]
[1752537254839,67.83177488,162.39,162.33,3.34037513]
[1752537255944,6.158,162.37,162.33,3.34037513]
[1752537256144,67.83177488,162.39,162.33,3.34037513]
[1752537256444,6.1577,162.38,162.34,6.1588]
[1752537257743,73.98897488,162.39,162.35,6.1585]
[1752537259044,73.98897488,162.39,162.33,3.34037513]
[1752537259249,6.1572,162.39,162.33,3.34037513]
[1752537259747,3.34037513,162.41,162.33,3.34037513]
[1752537260146,6.1578,162.37,162.34,6.1589]
[1752537261750,3.34037513,162.37,162.28,532.18]
[1752537261942,3.34037513,162.35,162.28,532.18]
[1752537262548,6.1595,162.33,162.3,6.1603]
[1752537262848,6.1595,162.33,162.28,532.18]
[1752537263040,3.34037513,162.38,162.31,3.34037513]
[1752537263739,6.1578,162.37,162.34,6.1587]
[1752537266448,3.34037513,162.4,162.31,3.34037513]
[1752537266449,6.1582,162.36,162.33,6.1591]
[1752537266652,3.34037513,162.4,162.33,6.1591]
[1752537267152,6.158,162.37,162.34,6.1589]
[1752537268049,6.1582,162.36,162.34,6.1589]
[1752537270456,1.07215478,162.41,162.3,3.34037513]
[1752537270647,3.34037513,162.38,162.3,3.34037513]
[1752537270846,6.1587,162.35,162.32,6.1595]
[1752537272951,6.1587,162.35,162.31,6.1599]
[1752537273157,6.1591,162.34,162.31,6.1599]
[1752537274557,6.1591,162.34,162.3,6.1603]
[1752537274755,6.1591,162.34,162.3,9.50067513]
[1752537275056,3.34037513,162.35,162.29,6.1605]
[1752537275356,3.34037513,162.35,162.28,712.32037513]
[1752537276258,6.1595,162.33,162.3,6.1604]
[1752537278558,6.159,162.34,162.31,6.1599]
[1752537280254,6.159,162.34,162.3,6.1603]
[1752537280451,6.159,162.34,162.28,712.32037513]
[1752537280452,3.34037513,162.33,162.28,532.18]
[1752537280956,6.1604,162.31,162.28,538.341]
[1752537281156,6.1604,162.31,162.28,532.18]
[1752537281953,6.1604,162.31,162.27,182.9613]
[1752537282357,3.34037513,162.33,162.27,182.9613]
[1752537282959,6.1604,162.31,162.27,182.9613]
[1752537284259,6.1604,162.31,162.28,6.1611]
[1752537286466,6.1599,162.32,162.27,176.8]
[1752537287467,6.1595,162.33,162.28,3.34037513]
[1752537288163,6.1595,162.33,162.29,6.1607]
[1752537288565,3.34037513,162.35,162.29,6.1607]
[1752537289269,6.1597,162.32,162.29,6.1607]
[1752537289567,6.1597,162.32,162.3,6.1605]
[1752537290266,6.1597,162.32,162.29,6.1607]
[1752537292061,6.1597,162.32,162.28,6.161]
[1752537292267,3.34037513,162.33,162.27,176.82]
[1752537292768,3.34037513,162.33,162.27,182.9814]
[1752537293568,6.1604,162.31,162.27,182.9814]
[1752537293867,3.34037513,162.33,162.27,182.9814]
[1752537294267,3.34037513,162.31,162.25,105.17674355]
[1752537294570,3.34037513,162.31,162.26,176.82]
[1752537295573,6.1614,162.28,162.26,176.82]
[1752537296865,6.1614,162.28,162.26,182.982]
[1752537297265,6.1614,162.28,162.26,176.82]
[1752537300275,3.34037513,162.31,162.26,182.9819]
[1752537301572,6.1614,162.28,162.26,176.82]
[1752537301775,6.1614,162.28,162.25,105.17684355]
[1752537301975,6.1614,162.28,162.26,176.84]
[1752537302170,5.19429642,162.34,162.25,99.01464355]
[1752537302377,3.34037513,162.29,162.21,535.44037513]
[1752537302676,3.34037513,162.29,162.22,176.84]
[1752537302977,3.34037513,162.29,162.23,6.1629]
[1752537303171,3.34037513,162.29,162.22,176.84]
[1752537303374,6.1627,162.25,162.22,183.0034]
[1752537303576,6.1627,162.25,162.22,176.84]
[1752537304070,6.1627,162.25,162.23,6.1629]
[1752537304274,6.1622,162.26,162.22,176.84]
[1752537304475,3.34037513,162.29,162.22,176.84]
[1752537304777,6.1618,162.27,162.24,6.1625]
[1752537304971,5.19429642,162.32,162.23,3.34037513]
[1752537304972,5.19429642,162.32,162.25,176.84]
[1752537305173,3.34037513,162.33,162.25,180.18037513]
[1752537305374,3.34037513,162.33,162.27,6.1615]
[1752537305574,3.34037513,162.33,162.25,180.18037513]
[1752537305976,6.1611,162.29,162.25,180.18037513]
[1752537307072,6.1611,162.29,162.26,6.1619]
[1752537320191,6.1611,162.29,162.27,6.1616]
[1752537325796,6.1611,162.29,162.26,6.1618]
[1752537326495,3.34037513,162.31,162.25,180.18037513]
[1752537326892,6.1611,162.29,162.26,6.1618]
[1752537329601,6.1611,162.29,162.27,6.1616]
[1752537330098,6.1611,162.29,162.26,6.1617]
[1752537330799,5.19429642,162.34,162.27,3.34037513]
[1752537331000,5.19429642,162.35,162.28,176.82]
[1752537331303,6.1599,162.32,162.29,3.34037513]
[1752537331502,6.1599,162.32,162.29,9.50097513]
[1752537334103,8.53467155,162.36,162.3,6.1603]
[1752537334607,6.1592,162.34,162.31,6.1601]
[1752537335895,6.1594,162.33,162.3,6.1603]
[1752537337810,6.1599,162.32,162.29,6.1607]
[1752537338007,6.1599,162.32,162.29,182.9607]
[1752537339706,6.1599,162.32,162.3,6.1604]
[1752537341212,6.1595,162.33,162.31,6.1601]
[1752537341410,5.19429642,162.36,162.29,180.14037513]
[1752537342015,6.1591,162.34,162.31,6.1599]
[1752537342310,3.34037513,162.35,162.29,180.14037513]
[1752537342513,6.1597,162.33,162.3,6.1603]
[1752537342707,3.34037513,162.35,162.29,180.14037513]
[1752537342909,3.34037513,162.35,162.29,176.8]
[1752537343514,6.16,162.32,162.29,182.9605]
[1752537345417,6.16,162.32,162.3,6.1604]
[1752537355021,6.16,162.32,162.3,8.29804318]
[1752537356222,2.13764318,162.31,162.23,6.90094665]
[1752537356423,2.13764318,162.3,162.26,2.13764318]
[1752537356724,2.13764318,162.29,162.26,2.13764318]
[1752537357323,8.29864318,162.29,162.26,8.29944318]
[1752537357525,2.13764318,162.3,162.26,8.29944318]
[1752537358930,6.1607,162.3,162.26,6.1618]
[1752537361330,3.34140577,162.32,162.27,6.1615]
[1752537361829,6.1605,162.3,162.27,6.1615]
[1752537363131,6.1605,162.3,162.25,3.34140577]
[1752537363132,3.34140577,162.32,162.26,6.1618]
[1752537363829,6.1607,162.3,162.26,6.1618]
[1752537364625,3.34140577,162.28,162.21,10.24235242]
[1752537364830,3.34140577,162.32,162.2,176.78]
[1752537364831,3.34140577,162.26,162.2,176.78]
[1752537365129,6.1631,162.24,162.2,176.78]
[1752537365529,6.1625,162.25,162.2,176.78]
[1752537366031,6.1625,162.25,162.22,6.1633]
[1752537366230,3.34140577,162.28,162.2,176.78]
[1752537366632,3.34140577,162.28,162.21,3.34140577]
[1752537366833,6.1618,162.27,162.23,6.1631]
[1752537367025,5.18541872,162.31,162.23,3.34140577]
[1752537367231,8.52682449,162.31,162.23,3.34140577]
[1752537367431,6.161,162.29,162.25,6.1621]
[1752537368537,6.1605,162.3,162.25,3.34140577]
[1752537369235,6.1605,162.3,162.26,6.1618]
[1752537371139,6.1609,162.29,162.26,6.1618]
[1752537372140,6.1606,162.3,162.26,6.1618]
[1752537372639,6.1606,162.3,162.27,6.1616]
[1752537373341,6.1601,162.32,162.28,6.1611]
[1752537373541,3.34140577,162.33,162.25,3.34140577]
[1752537373941,6.1604,162.31,162.28,6.1611]
[1752537378644,6.161,162.29,162.21,6.90094665]
[1752537378843,3.34140577,162.31,162.23,3.34140577]
[1752537379245,6.1612,162.29,162.25,6.1622]
[1752537380934,6.1613,162.28,162.25,6.1622]
[1752537381138,3.34140577,162.31,162.25,6.1622]
[1752537381442,6.1609,162.29,162.25,6.1622]
[1752537381645,3.34140577,162.31,162.24,6.1626]
[1752537381844,3.34140577,162.31,162.23,3.34140577]
[1752537382044,6.1612,162.29,162.23,3.34140577]
[1752537382646,6.1612,162.29,162.25,6.1623]
[1752537382946,6.1612,162.28,162.25,6.1623]
[1752537383543,6.161,162.29,162.26,6.1619]
[1752537383744,3.34140577,162.31,162.26,6.1619]
[1752537384647,3.34140577,162.31,162.25,6.1622]
[1752537385451,6.1611,162.29,162.25,6.1622]
[1752537387048,6.1611,162.29,162.26,6.1618]
[1752537392951,6.1604,162.31,162.27,6.1615]
[1752537393256,6.1604,162.31,162.26,3.34140577]
[1752537393556,6.1604,162.31,162.28,6.1612]
[1752537393857,6.1604,162.31,162.28,9.50260577]
[1752537396958,6.1605,162.3,162.28,9.50260577]
[1752537398259,6.1605,162.3,162.28,3.34140577]
[1752537399063,6.1603,162.31,162.28,9.50260577]
[1752537399559,8.52202297,162.35,162.28,9.50260577]
[1752537399762,6.1605,162.3,162.28,3.34140577]
[1752537401058,6.1605,162.3,162.27,6.1614]
[1752537401359,6.1605,162.3,162.23,6.90094665]
[1752537401360,3.34140577,162.31,162.24,3.34140577]
[1752537401756,6.1618,162.27,162.24,9.50390577]
[1752537402155,6.1617,162.27,162.24,9.50390577]
[1752537402355,6.1617,162.27,162.25,6.1623]
[1752537404361,6.1617,162.27,162.24,9.50390577]
[1752537406760,3.34140577,162.31,162.24,9.50390577]
[1752537406960,6.1614,162.28,162.24,9.50390577]
[1752537409166,6.1614,162.28,162.25,6.1623]
[1752537409561,6.1614,162.28,162.24,3.34140577]
[1752537409761,6.1614,162.28,162.24,9.50390577]
[1752537410057,6.1614,162.28,162.24,3.34140577]
[1752537411165,6.1614,162.28,162.25,6.1623]
[1752537412966,6.1614,162.28,162.26,2.13863442]
[1752537414068,6.1611,162.29,162.26,8.30053442]
[1752537414765,6.1607,162.3,162.27,8.30013442]
[1752537414971,2.13863442,162.31,162.27,2.13863442]
[1752537415265,6.1611,162.29,162.27,2.13863442]
[1752537420871,6.1612,162.28,162.27,2.13863442]
[1752537421066,6.1612,162.28,162.26,2.13863442]
[1752537421570,2.13863442,162.29,162.25,2.13863442]
[1752537422568,2.13863442,162.28,162.22,176.8]
[1752537422769,2.13863442,162.28,162.24,2.13863442]
[1752537423767,6.1622,162.26,162.24,2.13863442]
[1752537425572,6.1622,162.26,162.23,2.13863442]
[1752537426978,6.1625,162.25,162.23,2.13863442]
[1752537429778,6.1627,162.24,162.23,2.13863442]
[1752537430476,2.13863442,162.24,162.21,178.93863442]
[1752537430682,2.13863442,162.24,162.21,176.8]
[1752537431079,6.1634,162.23,162.21,176.8]
[1752537431680,6.1634,162.23,162.21,178.93863442]
[1752537431881,6.1635,162.22,162.21,176.8]
[1752537432879,6.1635,162.22,162.2,99.14408706]
[1752537434483,6.1635,162.22,162.2,101.28272148]
[1752537435385,6.1633,162.23,162.21,2.13863442]
[1752537436579,5.19028114,162.31,162.22,178.95863442]
[1752537436776,2.13863442,162.3,162.26,2.13863442]
[1752537436978,2.13863442,162.31,162.27,2.13863442]
[1752537437779,6.1614,162.28,162.27,2.13863442]
[1752537438681,6.1609,162.29,162.27,2.13863442]